bitfinex-derivatives/quotes_ETHF0:USTF0_20250828
["timestamp","ask_amount","ask_price","bid_price","bid_amount"]
[1756350840086,22.10036394,4533.0,4532.9,4.8783]
[1756350840588,1.55336394,4533.0,4532.9,4.8783]
[1756350841090,4.18536394,4533.0,4532.9,4.8783]
[1756350841990,1.55336394,4533.0,4532.9,4.8783]
[1756350842288,9.54471171,4533.0,4532.9,3.2078]
[1756350842688,9.54471171,4533.0,4532.9,2.3438]
[1756350843883,4.41371171,4533.0,4532.9,2.6414]
[1756350844087,16.98371171,4533.0,4532.9,2.6414]
[1756350844293,23.89571171,4533.0,4532.9,4.0143]
[1756350845294,23.89571171,4533.0,4532.9,3.3021]
[1756350845494,4.41371171,4533.0,4532.9,3.3021]
[1756350846092,11.95171171,4533.0,4532.9,3.3021]
[1756350846287,1.55336394,4533.0,4532.9,4.0143]
[1756350846493,15.22756394,4533.0,4532.9,4.0143]
[1756350846695,15.52786394,4533.0,4532.9,4.0143]
[1756350847300,21.03521171,4533.0,4532.9,2.3438]
[1756350847798,21.035519,4533.0,4532.9,2.6414]
[1756350848001,21.035519,4533.0,4532.9,4.0143]
[1756350848202,21.03553363,4533.0,4532.9,4.0143]
[1756350848699,3.72253363,4533.0,4532.9,4.0143]
[1756350848995,15.26853363,4533.0,4532.9,4.0143]
[1756350849196,24.24553363,4533.0,4532.9,4.0143]
[1756350849399,24.24553363,4533.0,4532.9,3.1037]
[1756350850695,24.24553363,4533.0,4532.9,3.3988]
[1756350851494,24.24553363,4533.0,4532.9,2.6414]
[1756350852600,24.24553363,4533.0,4532.9,2.3438]
[1756350853099,3.72253363,4533.0,4532.9,2.3438]
[1756350853404,24.24553363,4533.0,4532.9,2.6414]
[1756350853800,3.72253363,4533.0,4532.9,2.6414]
[1756350854098,16.54723363,4533.0,4532.9,4.0143]
[1756350854697,16.83453363,4533.0,4532.9,4.0143]
[1756350854898,3.72253363,4533.0,4532.9,2.9365]
[1756350855092,0.86218586,4533.0,4532.9,5.40641697]
[1756350855294,32.6045,4534.1,4534.0,0.6607]
[1756350855596,41.12383601,4534.1,4534.0,4.8783]
[1756350855798,1.31853601,4534.1,4534.0,4.8783]
[1756350856101,0.56183601,4534.1,4534.0,4.8783]
[1756350856903,1.60583601,4534.1,4534.0,4.1661]
[1756350857099,0.18873601,4534.1,4534.0,4.8783]
[1756350857298,0.5619,4534.5,4534.4,0.6607]
[1756350857601,0.3731,4534.5,4534.4,1.6705]
[1756350858195,0.5619,4534.5,4534.4,1.6705]
[1756350858897,0.1851,4534.5,4534.4,1.6705]
[1756350859098,0.1851,4534.5,4534.0,3.2078]
[1756350859099,0.1888,4534.4,4534.2,1.0098]
[1756350859393,0.1888,4534.4,4534.0,3.2078]
[1756350859394,0.1851,4534.4,4534.3,1.6705]
[1756350859597,0.3731,4534.4,4534.3,1.6705]
[1756350859797,0.1851,4534.4,4534.3,1.6705]
[1756350859998,0.1888,4534.6,4534.3,0.6607]
[1756350860202,2.57304777,4534.6,4534.5,4.8783]
[1756350860502,0.8295,4534.6,4534.5,4.8783]
[1756350860702,0.3731,4534.6,4534.5,4.8783]
[1756350861102,1.1298,4534.6,4534.5,4.8783]
[1756350861792,1.1298,4534.6,4534.5,4.6799]
[1756350861999,1.4256,4534.6,4534.5,3.49]
[1756350862300,0.17867908,4536.6,4534.5,4.9139]
[1756350862495,0.5777,4534.9,4534.8,1.7061]
[1756350862704,1.1368,4534.9,4534.8,1.7061]
[1756350864995,1.4326,4534.7,4534.5,3.2078]
[1756350865200,4.00564777,4534.6,4534.5,3.2078]
[1756350865600,4.00564777,4534.6,4534.5,3.49]
[1756350865801,24.22784777,4534.6,4534.5,4.9139]
[1756350866296,24.52364777,4534.6,4534.5,3.2078]
[1756350867109,24.52364777,4534.6,4534.5,3.6919]
[1756350867701,24.52364777,4534.6,4534.5,3.49]
[1756350868406,24.52364777,4534.6,4534.5,4.2797]
[1756350868609,24.52364777,4534.6,4534.5,4.485]
[1756350869102,0.4821,4535.2,4534.7,0.7362]
[1756350869409,1.1368,4535.1,4535.0,4.9139]
[1756350869602,9.5057,4535.1,4535.0,4.9139]
[1756350870404,12.85664777,4535.1,4535.0,3.2078]
[1756350870909,12.85664777,4535.1,4535.0,4.9139]
[1756350872507,12.85664777,4535.1,4535.0,3.2078]
[1756350872705,1.4326,4534.5,4534.4,3.2078]
[1756350872913,21.9476,4534.5,4534.4,3.2078]
[1756350873101,24.52064777,4534.5,4534.4,3.2078]
[1756350875706,0.3889,4534.5,4534.4,4.9139]
[1756350876016,0.1992,4534.5,4534.4,4.9139]
[1756350876202,8.617,4534.7,4534.6,0.6877]
[1756350876402,8.617,4534.7,4534.6,1.7061]
[1756350878010,9.7538,4534.7,4534.6,1.7061]
[1756350878612,9.0059,4534.7,4534.6,1.7061]
[1756350878802,8.8162,4534.7,4534.6,1.7061]
[1756350879513,8.617,4534.7,4534.6,1.7061]
[1756350880213,15.83,4535.2,4534.7,1.0184]
[1756350880412,19.53984777,4535.2,4535.1,4.9139]
[1756350880602,0.1888,4535.4,4535.1,3.8955]
[1756350880808,20.513,4535.5,4535.1,3.8955]
[1756350881104,1.4326,4535.2,4535.1,3.8955]
[1756350881410,1.4326,4535.2,4535.1,4.1777]
[1756350881611,1.4326,4535.2,4535.1,4.485]
[1756350881813,1.4326,4535.2,4535.1,3.2078]
[1756350882906,21.90511697,4535.5,4534.5,0.2822]
[1756350882907,0.2658,4534.6,4534.5,0.2822]
[1756350883106,4.00564777,4534.6,4534.5,0.4841]
[1756350883302,20.513,4534.7,4534.5,1.7061]
[1756350883521,21.0907,4534.7,4534.6,1.7061]
[1756350883813,21.384,4534.7,4534.6,1.7061]
[1756350884318,21.6498,4534.7,4534.6,1.7061]
[1756350884515,21.9456,4534.7,4534.6,1.7061]
[1756350884916,21.6498,4534.7,4534.6,1.7061]
[1756350885331,20.513,4534.7,4534.6,1.7061]
[1756350885512,20.513,4534.7,4534.6,2.10301]
[1756350885712,20.513,4534.7,4534.6,1.7061]
[1756350886308,21.6498,4534.7,4534.6,1.7061]
[1756350886615,0.6547,4534.5,4534.4,3.6919]
[1756350886917,1.4326,4534.5,4534.4,4.485]
[1756350887221,1.4326,4534.5,4534.4,4.9139]
[1756350888218,4.00564777,4534.5,4534.4,3.2078]
[1756350888613,4.00564777,4534.5,4534.4,3.49]
[1756350888814,4.00564777,4534.5,4534.4,3.6919]
[1756350890519,3.41654777,4534.5,4534.4,4.9139]
[1756350890720,2.96194777,4534.5,4534.4,4.9139]
[1756350891220,0.1992,4534.5,4534.4,4.9139]
[1756350891524,20.7098,4534.7,4534.6,1.6998]
[1756350891716,21.1851,4534.7,4534.6,1.6998]
[1756350891916,21.6536,4534.7,4534.6,1.6998]
[1756350892821,21.9574,4534.7,4534.6,1.6998]
[1756350893720,0.7723,4534.6,4534.4,3.2078]
[1756350894022,4.01744777,4534.5,4534.4,3.2078]
[1756350898824,24.52744777,4534.5,4534.4,3.2078]
[1756350899124,24.52744777,4534.5,4534.4,3.5094]
[1756350899419,24.52744777,4534.5,4534.4,3.2078]
[1756350900224,28.74797777,4534.5,4534.4,3.2078]
[1756350900521,1.4443,4533.9,4533.8,3.2078]
[1756350900726,21.9533,4533.9,4533.8,3.2078]
[1756350901623,0.6721,4533.3,4533.2,3.5094]
[1756350901926,24.52634777,4533.3,4533.2,3.7117]
[1756350902118,21.9533,4533.3,4533.2,3.9996]
[1756350902319,21.9533,4533.3,4533.2,4.2921]
[1756350902715,24.52634777,4533.3,4533.2,3.9996]
[1756350903321,24.52634777,4533.3,4533.2,3.5094]
[1756350904423,24.52634777,4533.3,4533.2,3.2078]
[1756350905027,24.52634777,4533.3,4533.2,3.5094]
[1756350905426,24.52634777,4533.3,4533.2,4.9076]
[1756350905731,24.22254777,4533.3,4533.2,4.9076]
[1756350906327,24.52634777,4533.3,4533.2,3.2078]
[1756350908436,24.52634777,4533.3,4533.2,3.5094]
[1756350909128,21.6495,4533.3,4533.2,4.9076]
[1756350909930,21.9533,4533.3,4533.2,4.9076]
[1756350910441,21.9533,4533.3,4533.2,4.4955]
[1756350910635,21.6495,4533.3,4533.2,4.9076]
[1756350911036,0.8608,4533.3,4533.2,4.9076]
[1756350911233,11.8605,4533.3,4533.2,4.9076]
[1756350912533,3.2078,4534.7,4533.9,1.6998]
[1756350912732,0.1887,4534.6,4534.2,1.6998]
[1756350912933,52.8498,4534.3,4534.2,1.6998]
[1756350913133,53.4165,4534.3,4534.2,1.6998]
[1756350913940,53.7203,4534.3,4534.2,1.6998]
[1756350914632,56.29334777,4534.3,4534.2,0.3016]
[1756350914832,0.6721,4534.0,4533.9,3.2078]
[1756350915033,0.1968,4533.6,4533.5,0.3016]
[1756350915232,21.1801,4533.6,4533.5,0.3016]
[1756350915539,0.6721,4533.4,4533.3,0.3016]
[1756350915739,0.6721,4533.2,4533.1,3.5094]
[1756350915940,24.52434777,4533.2,4533.1,3.5094]
[1756350916132,21.9513,4533.2,4533.1,3.5094]
[1756350916637,21.9513,4533.2,4533.1,4.4955]
[1756350916836,21.9513,4533.2,4533.1,4.9076]
[1756350917139,21.9513,4533.2,4533.1,3.2078]
[1756350918641,21.9513,4533.2,4533.1,3.5094]
[1756350918938,1.1405,4533.2,4533.1,4.9076]
[1756350919140,9.5758,4533.2,4533.1,4.9076]
[1756350919342,9.3871,4533.2,4533.1,4.9076]
[1756350920038,0.1887,4533.5,4533.2,1.0062]
[1756350920239,1.1405,4533.9,4533.8,1.6998]
[1756350920540,21.6465,4533.9,4533.8,1.6998]
[1756350920743,0.5738,4534.2,4534.1,0.6936]
[1756350920935,3.14684777,4534.2,4534.1,1.6998]
[1756350921133,0.3851,4534.2,4534.1,1.6998]
[1756350921344,20.8911,4534.2,4534.1,1.6998]
[1756350921545,0.4967,4534.9,4534.5,0.6571]
[1756350921753,0.5891,4534.7,4534.6,4.8573]
[1756350921940,0.4002,4534.7,4534.6,4.8573]
[1756350922642,1.1578,4534.7,4534.6,4.8573]
[1756350923342,0.6611,4534.7,4534.6,4.8573]
[1756350923646,0.4002,4534.7,4534.6,4.8573]
[1756350923850,1.1578,4534.7,4534.6,4.8573]
[1756350925445,0.1988,4534.7,4534.6,4.8573]
[1756350926046,0.4002,4534.7,4534.6,4.8573]
[1756350926250,0.5891,4534.7,4534.6,4.8573]
[1756350926450,1.1578,4534.7,4534.6,4.8573]
[1756350927549,0.5891,4534.7,4534.6,4.8573]
[1756350927751,1.1578,4534.7,4534.6,4.8573]
[1756350928853,11.118,4534.8,4534.6,3.8649]
[1756350929055,0.4304,4536.0,4535.7,0.6571]
[1756350929353,8.055,4536.2,4535.9,3.8649]
[1756350929554,18.19894777,4536.2,4536.1,1.4455]
[1756350929757,17.1495,4536.2,4536.1,1.6495]
[1756350930252,17.4573,4536.2,4536.1,1.6495]
[1756350930440,17.4573,4536.2,4535.6,0.5669]
[1756350930441,16.7191,4536.2,4535.6,0.5669]
[1756350930644,1.7027,4535.7,4535.6,0.7709]
[1756350930848,3.54024777,4535.7,4535.6,1.6495]
[1756350931154,1.3993,4535.7,4535.6,1.6495]
[1756350931752,1.7027,4535.7,4535.6,1.224]
[1756350931952,1.7027,4535.7,4535.6,1.6495]
[1756350932152,1.3993,4535.7,4535.6,1.6495]
[1756350933255,16.058,4536.2,4535.7,0.9924]
[1756350933456,2.14094777,4536.1,4536.0,3.8649]
[1756350933657,2.14094777,4536.1,4536.0,4.8573]
[1756350934655,3.54024777,4536.1,4536.0,4.8573]
[1756350935054,3.84364777,4536.1,4536.0,0.2869]
[1756350935252,1.3993,4535.8,4535.7,1.6495]
[1756350935648,1.3993,4535.8,4535.4,3.2078]
[1756350935649,21.8943,4535.9,4535.8,1.3695]
[1756350936358,22.1977,4535.9,4535.8,0.2869]
[1756350936551,22.1977,4535.9,4535.8,1.6495]
[1756350936552,21.8943,4535.9,4535.8,1.6495]
[1756350936752,22.1977,4535.9,4535.8,1.6495]
[1756350937149,22.1977,4535.9,4535.8,1.224]
[1756350937356,22.1977,4535.9,4535.8,1.6495]
[1756350937755,21.8943,4535.9,4535.8,1.6495]
[1756350937952,21.5865,4535.9,4535.8,1.6495]
[1756350938655,0.8901,4536.2,4536.1,0.4681]
[1756350938958,1.0915,4536.2,4536.1,4.8573]
[1756350939157,10.169,4536.4,4536.3,1.6495]
[1756350940461,0.4304,4536.7,4536.3,0.6571]
[1756350940762,20.07794777,4536.6,4536.5,1.6495]
[1756350940961,22.63194777,4536.6,4536.5,4.8573]
[1756350941165,21.8903,4536.6,4536.5,4.8573]
[1756350941763,21.5825,4536.6,4536.5,4.8573]
[1756350942566,21.2282,4537.8,4537.4,0.9924]
[1756350942767,3.23244777,4537.7,4537.6,3.8649]
[1756350942962,3.54024777,4537.7,4537.6,4.8573]
[1756350943160,1.3993,4537.7,4537.6,4.8573]
[1756350943361,1.7027,4537.9,4537.8,0.2869]
[1756350943570,1.7027,4537.9,4537.6,3.2078]
[1756350943571,0.3034,4537.8,4537.6,3.2078]
[1756350943776,20.489,4538.0,4537.6,4.8573]
[1756350943777,1.3993,4537.7,4537.6,4.8573]
[1756350943963,1.7027,4537.7,4537.6,4.1518]
[1756350944169,1.7027,4537.7,4537.6,3.8877]
[1756350944471,0.8901,4537.7,4537.6,4.8573]
[1756350944667,21.8883,4537.7,4537.6,4.8573]
[1756350944975,22.1917,4537.7,4537.6,4.4318]
[1756350945175,22.1917,4537.7,4537.6,3.2078]
[1756350945683,21.8883,4537.7,4537.6,4.8573]
[1756350946067,22.1917,4537.7,4537.6,4.4318]
[1756350946273,22.1917,4537.7,4537.6,3.2078]
[1756350946469,22.1917,4537.7,4537.6,3.6987]
[1756350946670,22.1917,4537.7,4537.6,3.8877]
[1756350946966,22.1917,4537.7,4537.6,3.2078]
[1756350947168,29.61988001,4537.7,4536.7,0.2869]
[1756350947364,25.3995,4537.7,4536.7,0.2869]
[1756350947569,0.1988,4536.8,4536.7,1.6495]
[1756350947770,20.6848,4536.8,4536.7,1.6495]
[1756350948166,20.486,4536.8,4536.7,1.6495]
[1756350948469,3.2078,4537.7,4536.7,1.6495]
[1756350948470,3.71,4537.7,4537.6,1.6495]
[1756350948670,24.195,4537.7,4537.6,1.6495]
[1756350949278,20.6838,4537.7,4537.6,1.6495]
[1756350950173,20.485,4537.7,4537.6,1.6495]
[1756350951170,3.2078,4538.2,4537.7,0.7124]
[1756350951376,3.4066,4538.2,4538.1,1.6696]
[1756350951571,14.4656,4538.2,4538.1,1.6696]
[1756350951771,14.7477,4538.2,4538.1,1.6696]
[1756350953076,14.7477,4538.2,4537.5,3.2078]
[1756350953077,0.2821,4538.1,4538.0,0.6478]
[1756350953274,0.4826,4538.1,4538.0,1.6746]
[1756350953577,2.14094777,4538.1,4538.0,1.6746]
[1756350953773,4.6904,4538.8,4538.7,0.6478]
[1756350954078,19.5064,4538.8,4538.7,1.2519]
[1756350954577,21.64734777,4538.8,4538.7,1.0569]
[1756350955980,21.36524777,4538.8,4538.5,1.0268]
[1756350956181,2.62354777,4538.6,4538.5,1.6746]
[1756350956383,2.62354777,4538.6,4538.5,1.2519]
[1756350957179,22.82244777,4538.6,4538.5,1.6746]
[1756350957479,23.10454777,4538.6,4538.5,1.2519]
[1756350957978,22.82244777,4538.6,4538.5,1.6746]
[1756350958178,2.14094777,4538.6,4538.5,1.6746]
[1756350958379,1.0,4538.8,4538.7,1.6746]
[1756350958876,3.2078,4539.9,4538.7,5.6746]
[1756350959076,1.3821,4539.8,4539.7,0.9139]
[1756350959285,23.69814777,4539.8,4539.7,1.6746]
[1756350959479,3.2078,4540.4,4540.1,0.6478]
[1756350959678,0.7758,4540.2,4540.1,1.6746]
[1756350959881,1.7642,4540.2,4540.1,0.9479]
[1756350960083,0.1,4540.2,4540.1,1.6746]
[1756350960375,21.2528,4540.2,4539.7,0.304]
[1756350960580,1.6642,4539.9,4539.8,1.6746]
[1756350960978,0.1,4540.2,4540.1,1.1834]
[1756350961176,0.1,4540.2,4540.1,1.6746]
[1756350961477,1.7642,4540.2,4540.1,1.6746]
[1756350961976,1.55978839,4542.7,4540.1,1.6746]
[1756350961977,3.8943,4541.4,4540.1,4.6478]
[1756350962183,2.34144777,4540.9,4540.8,1.6746]
[1756350962379,3.50324777,4540.9,4540.8,1.6746]
[1756350962679,0.9884,4541.9,4540.9,1.0268]
[1756350962977,2.14094777,4541.5,4541.1,0.6478]
[1756350963178,1.6642,4542.0,4541.9,0.6478]
[1756350963379,4.5442,4542.0,4541.9,0.6478]
[1756350963582,6.68514777,4542.0,4541.9,0.6478]
[1756350963977,20.50714777,4542.0,4541.9,0.2617]
[1756350964181,0.584,4541.2,4540.9,0.7228]
[1756350964386,1.6642,4541.0,4540.9,1.6746]
[1756350964686,1.6642,4541.0,4540.9,4.8824]
[1756350964883,1.3623,4541.0,4540.9,4.8824]
[1756350965079,1.3623,4540.7,4540.6,1.4835]
[1756350965281,1.6642,4540.7,4540.6,0.6478]
[1756350965480,1.6642,4539.8,4539.7,0.9479]
[1756350965681,31.735,4541.9,4539.8,1.0268]
[1756350965682,3.2078,4540.2,4539.8,1.0268]
[1756350965874,3.2078,4540.2,4538.4,5.175]
[1756350965875,1.3914,4540.9,4540.8,1.6746]
[1756350966182,3.53234777,4540.9,4540.8,1.6746]
[1756350966484,4.124,4541.1,4540.8,0.6478]
[1756350966684,4.124,4541.1,4540.6,3.2078]
[1756350966685,2.14094777,4541.0,4540.9,1.6746]
[1756350967288,0.3019,4541.4,4541.0,0.6478]
[1756350967480,15.8592,4541.2,4541.1,1.6746]
[1756350967680,1.6642,4541.2,4541.1,1.6746]
[1756350967876,20.666,4541.7,4541.3,0.304]
[1756350968082,0.9884,4541.4,4540.7,1.0268]
[1756350968287,0.9884,4542.1,4542.0,0.4567]
[1756350968689,3.32984777,4542.1,4542.0,1.6746]
[1756350968885,3.53234777,4542.1,4542.0,1.6746]
[1756350969077,3.80514777,4542.1,4542.0,1.6746]
[1756350969282,3.80514777,4542.1,4541.6,1.0268]
[1756350969588,3.80514777,4541.7,4541.6,1.6746]
[1756350969989,1.6642,4541.7,4541.6,1.6746]
[1756350971392,1.3623,4541.7,4541.6,1.6746]
[1756350971586,1.6642,4541.0,4540.8,3.2078]
[1756350971783,0.9884,4540.4,4540.3,3.2078]
[1756350971985,0.9884,4540.3,4539.4,0.304]
[1756350972284,3.2078,4540.2,4539.2,0.3001]
[1756350972488,0.9884,4540.8,4539.8,3.2078]
[1756350972489,0.4044,4540.8,4539.8,3.2078]
[1756350972689,2.14094777,4540.5,4540.4,1.0268]
[1756350973186,0.2821,4540.9,4540.3,3.2078]
[1756350973384,3.2078,4541.3,4540.8,3.2078]
[1756350973385,20.755,4541.3,4540.8,3.2078]
[1756350973589,2.14094777,4541.1,4540.5,0.39639]
[1756350973986,2.14094777,4541.1,4540.6,0.304]
[1756350974191,2.14094777,4541.1,4541.0,0.304]
[1756350974388,0.9884,4541.2,4540.5,0.304]
[1756350974690,0.4044,4540.4,4540.3,4.2346]
[1756350974991,2.14094777,4540.4,4540.3,4.2346]
[1756350975193,14.8484,4541.0,4540.4,1.0268]
[1756350975893,2.14094777,4540.5,4540.4,1.0268]
[1756350976188,3.12934777,4540.5,4540.4,0.7228]
[1756350976389,0.9884,4540.4,4540.3,3.9306]
[1756350976693,3.12934777,4540.4,4540.3,4.2346]
[1756350976986,0.3019,4540.4,4539.8,3.9306]
[1756350977185,0.9884,4540.8,4539.9,1.0268]
[1756350977392,2.14094777,4540.0,4539.9,1.0268]
[1756350977990,2.82744777,4540.0,4539.9,1.0268]
[1756350978198,3.12934777,4540.0,4539.9,1.0268]
[1756350978398,0.3019,4539.8,4539.4,1.0268]
[1756350978694,0.9884,4539.5,4539.4,0.3001]
[1756350978898,3.12934777,4539.5,4539.4,0.3001]
[1756350979384,0.7063,4539.4,4539.2,4.2346]
[1756350979692,2.14094777,4539.3,4539.2,4.2346]
[1756350979894,2.54534777,4539.3,4539.2,4.2346]
[1756350980094,3.12934777,4539.3,4539.2,4.2346]
[1756350980285,2.82744777,4539.3,4539.2,4.2346]
[1756350980487,2.14094777,4539.3,4539.2,4.2346]
[1756350982799,3.14184777,4539.3,4539.2,1.0268]
[1756350983096,3.14184777,4539.3,4538.8,0.2959]
[1756350983296,1.0009,4539.3,4539.0,3.2078]
[1756350983496,2.14094777,4539.2,4539.1,0.9861]
[1756350983699,2.14094777,4539.2,4539.1,1.666]
[1756350983894,1.0009,4539.8,4539.2,0.9861]
[1756350984095,1.6783,4539.8,4539.7,0.9758]
[1756350984298,2.20929219,4539.8,4539.7,0.9758]
[1756350984597,1.6783,4539.5,4539.4,0.4017]
[1756350984799,1.6783,4539.5,4539.4,1.0816]
[1756350984993,3.81924777,4539.5,4539.4,1.666]
[1756350985196,3.52234777,4539.5,4539.4,1.666]
[1756350985398,2.81834777,4539.5,4539.4,1.666]
[1756350986301,2.33884777,4539.5,4539.4,1.666]
[1756350986602,2.33884777,4539.5,4538.5,3.6824]
[1756350986603,1.6783,4538.6,4538.5,3.6824]
[1756350986806,1.6783,4538.6,4538.5,3.2078]
[1756350987098,0.2777,4539.7,4539.4,0.9861]
[1756350987303,0.9019,4539.7,4539.6,1.666]
[1756350987505,1.15597695,4539.7,4539.6,1.666]
[1756350987708,1.6783,4539.7,4539.6,1.666]
[1756350988403,0.3931,4539.7,4539.6,1.666]
[1756350988703,33.4063,4540.1,4540.0,1.666]
[1756350988895,33.93824674,4540.1,4540.0,1.666]
[1756350989097,36.07919451,4540.1,4539.6,0.9861]
[1756350989396,3.81924777,4539.7,4539.6,1.666]
[1756350989597,1.6783,4539.7,4539.6,1.666]
[1756350989793,1.6783,4539.7,4539.6,1.3775]
[1756350990599,1.3814,4539.4,4539.3,3.2078]
[1756350990802,3.81924777,4539.4,4539.3,3.2078]
[1756350991003,1.6783,4539.4,4539.3,3.2078]
[1756350991301,1.6783,4539.4,4539.3,4.1836]
[1756350991502,1.6783,4539.4,4539.3,4.8738]
[1756350991698,1.6783,4539.4,4539.3,3.8877]
[1756350991903,52.442,4540.1,4538.9,0.6902]
[1756350991904,1.252,4539.0,4538.9,1.666]
[1756350992098,1.6783,4539.0,4538.9,1.666]
[1756350992292,3.81924777,4539.0,4538.9,0.9758]
[1756350993004,3.81924777,4539.0,4538.9,0.6799]
[1756350993394,0.4263,4539.8,4538.9,0.6799]
[1756350993598,2.33884777,4539.0,4538.9,1.666]
[1756350993800,3.81924777,4539.0,4538.9,0.9758]
[1756350994003,3.81924777,4539.0,4538.9,1.666]
[1756350994203,2.53404777,4539.0,4538.9,1.666]
[1756350994704,3.81924777,4539.0,4538.9,1.3775]
[1756350994905,3.81924777,4539.0,4538.9,0.6799]
[1756350995101,1.6783,4538.7,4538.6,3.2078]
[1756350995310,3.81924777,4538.7,4538.6,3.2078]
[1756350995606,3.81924777,4538.7,4538.1,0.2885]
[1756350995607,1.6783,4538.7,4538.1,0.2885]
[1756350995808,3.81924777,4538.2,4538.1,0.6799]
[1756350996001,1.6783,4538.1,4538.0,3.2078]
[1756350996308,3.81924777,4538.1,4538.0,3.2078]
[1756350996606,0.2969,4538.7,4538.1,0.9861]
[1756350996809,0.704,4539.3,4538.4,0.6902]
[1756350997007,2.14094777,4538.8,4538.7,0.6799]
[1756350997206,2.81174777,4538.8,4538.7,1.666]
[1756350997405,1.3814,4538.8,4538.7,1.666]
[1756350997706,1.6783,4538.8,4538.7,1.666]
[1756350997906,3.81924777,4538.8,4538.7,1.666]
[1756350998207,0.1979,4538.7,4538.6,0.9861]
[1756350998397,0.4948,4539.0,4538.9,0.6799]
[1756350998605,0.1979,4539.0,4538.9,1.666]
[1756350998803,2.33884777,4539.0,4538.9,1.666]
[1756350999304,3.81924777,4539.0,4538.9,1.666]
[1756350999513,3.52234777,4539.0,4538.9,1.666]
[1756350999707,2.81834777,4539.0,4538.9,1.666]
[1756351000009,4.6018,4539.4,4539.3,1.3701]
[1756351000307,4.6018,4539.4,4539.3,1.666]
[1756351000502,3.2078,4539.4,4539.3,1.666]
[1756351001203,0.7232,4539.9,4539.4,0.39649]
[1756351001410,0.1979,4539.9,4539.8,1.666]
[1756351001714,1.6783,4539.9,4539.8,1.666]
[1756351003314,3.4057,4540.1,4540.0,1.666]
[1756351003509,0.1979,4540.1,4540.0,1.666]
[1756351003713,2.33884777,4540.1,4540.0,1.666]
[1756351004509,0.1979,4540.5,4540.4,1.666]
[1756351004715,2.33884777,4540.5,4540.4,1.666]
[1756351005011,3.2078,4541.1,4540.8,1.666]
[1756351005217,2.14094777,4541.0,4540.9,1.666]
[1756351005413,0.4263,4541.3,4540.9,1.666]
[1756351005716,0.1979,4541.4,4541.3,1.666]
[1756351006216,1.6783,4541.4,4541.3,1.666]
[1756351006612,0.1979,4541.4,4541.3,1.666]
[1756351007011,0.2777,4541.8,4541.3,0.6799]
[1756351007217,0.3931,4541.8,4541.7,1.666]
[1756351007618,1.6783,4541.8,4541.7,1.666]
[1756351007927,3.81924777,4541.8,4541.7,1.666]
[1756351008723,2.14094777,4541.8,4541.7,1.666]
[1756351009825,2.14094777,4541.8,4541.5,3.2078]
[1756351009826,1.0009,4542.4,4541.8,0.9861]
[1756351010018,2.14094777,4541.9,4541.8,1.666]
[1756351010319,2.33884777,4541.9,4541.8,1.666]
[1756351010524,1.6783,4541.9,4541.8,1.666]
[1756351010722,1.6783,4541.9,4541.8,0.9758]
[1756351011026,1.6783,4541.9,4541.8,0.6799]
[1756351011321,1.6783,4541.9,4541.5,3.5037]
[1756351011322,1.6946,4541.6,4541.5,4.5853]
[1756351011517,3.83554777,4541.6,4541.5,4.5853]
[1756351011722,1.6946,4541.6,4541.5,4.878]
[1756351012527,3.83554777,4541.6,4541.5,3.2078]
[1756351013220,3.83554777,4541.6,4541.0,1.0063]
[1756351013421,3.81904777,4541.3,4541.2,1.6514]
[1756351013721,1.6781,4541.3,4541.2,1.6514]
[1756351014123,3.81904777,4541.3,4541.2,0.9346]
[1756351014521,3.81904777,4541.3,4541.2,1.6514]
[1756351015829,3.81904777,4541.3,4540.9,3.2078]
[1756351015830,1.6781,4541.0,4540.9,4.1092]
[1756351016029,1.6781,4541.0,4540.9,4.381]
[1756351016232,3.81904777,4541.0,4540.9,4.381]
[1756351016427,3.81904777,4541.0,4540.9,3.9569]
[1756351016630,1.2142,4541.0,4540.9,4.8592]
[1756351016825,3.81904777,4541.0,4540.9,4.8592]
[1756351017333,3.81904777,4541.0,4540.9,3.4796]
[1756351017733,3.81904777,4541.0,4540.9,3.2078]
[1756351018036,3.81904777,4541.0,4540.9,4.8592]
[1756351018229,3.51724777,4541.0,4540.9,4.8592]
[1756351018728,3.81904777,4541.0,4540.9,4.5665]
[1756351019126,3.81904777,4541.0,4540.9,3.2078]
[1756351019323,1.0172,4540.9,4540.4,0.7136]
[1756351019524,1.6781,4540.5,4540.4,1.6514]
[1756351019828,3.81904777,4540.5,4540.4,1.6514]
[1756351020033,1.6781,4540.5,4540.4,1.6514]
[1756351020331,3.81904777,4540.5,4540.4,0.2718]
[1756351020731,3.81904777,4540.5,4540.3,3.2078]
[1756351020732,1.6781,4540.4,4540.3,3.2078]
[1756351020931,3.81904777,4540.4,4540.3,3.2078]
[1756351021132,1.6781,4540.4,4540.3,3.2078]
[1756351021726,0.6609,4540.0,4539.9,0.2895]
[1756351021926,3.81904777,4540.0,4539.9,0.7491]
[1756351022234,3.81904777,4540.0,4539.9,1.3587]
[1756351022832,3.81904777,4540.0,4539.9,0.9346]
[1756351023035,3.81904777,4540.0,4539.9,0.2718]
[1756351023334,1.6781,4539.7,4539.6,4.8592]
[1756351023539,3.51724777,4539.7,4539.6,4.8592]
[1756351023732,0.6609,4539.7,4539.6,4.8592]
[1756351024734,0.7154,4539.9,4539.6,5.25567]
[1756351025036,12.85184777,4540.0,4539.9,1.6514]
[1756351025341,14.13304777,4540.0,4539.9,1.6514]
[1756351025536,11.9921,4540.0,4539.9,1.6514]
[1756351026338,14.13304777,4540.0,4539.9,1.6514]
[1756351026733,0.3018,4540.7,4540.3,0.6451]